[Event "Chelyabinskiy variant-A 2021"]
[Site "Chelyabinsk"]
[Date "2021.03.23"]
[Round "1.1"]
[White "Barseghyan, Armen Ar."]
[Black "Ponkratov, Pavel"]
[Result "1/2-1/2"]
[ECO "D85"]
[WhiteElo "2360"]
[BlackElo "2619"]
[Annotator "RC"]
[PlyCount "62"]
[EventDate "2021.03.23"]
[EventType "swiss"]
[EventCountry "RUS"]
[SourceTitle "playchess.com"]
[Source "ChessBase"]
[SourceQuality "1"]
[TimeControl "5400+30"]

1. d4 {[%emt 0:00:00]} Nf6 {[%emt 0:00:00]} 2. c4 {[%emt 0:00:03]} g6 {[%emt 0:00:24]} 3. Nc3 {[%emt 0:00:20]} d5 {[%emt 0:00:05]} 4. cxd5 {[%emt 0:00:14]} Nxd5 {[%emt 0:00:05]} 5. g3 {[%emt 0:00:08]} Bg7 {[%emt 0:01:52]} 6. Bg2 {[%emt 0:00:24]} Nb6 {[%emt 0:00:13]} 7. Bf4 {[%emt 0:00:28]} O-O {[%emt 0:00:38]} 8. Be5 {[%emt 0:00:20]} Bxe5 {[%emt 0:01:38]} 9. dxe5 {[%emt 0:00:48]} c6 {[%emt 0:00:05]} 10. Qc1 {[%emt 0:00:34]} Nc4 {[%emt 0:03:51]} 11. Nf3 {[%emt 0:01:38]} Qa5 {[%emt 0:07:41]} 12. Qh6 {[%emt 0:16:28]} f6 {[%emt 0:00:20]} 13. exf6 {[%emt 0:00:17]} exf6 {[%emt 0:00:05]} 14. O-O {[%emt 0:11:01]} Nd7 {[%emt 0:01:56]} 15. Ne4 {[%emt 0:04:54]} Nde5 {[%emt 0:03:40]} 16. Nd4 {[%emt 0:05:29]} Qd8 {[%emt 0:07:57]} 17. Rad1 {[%emt 0:09:42]} Qe7 {[%emt 0:01:35]} 18. Qc1 {[%emt 0:01:16]} Nb6 {[%emt 0:02:22]} 19. Qc5 {[%emt 0:01:16]} Qxc5 {[%emt 0:02:55]} 20. Nxc5 {[%emt 0:03:06]} a5 {[%emt 0:02:19]} 21. b3 {[%emt 0:03:47]} Rf7 {[%emt 0:05:41]} 22. e4 {[%emt 0:18:37]} Ned7 {[%emt 0:09:25]} 23. Nd3 {[%emt 0:00:42]} Ne5 {[%emt 0:00:45]} 24. Nc5 {[%emt 0:02:04]} Ned7 {[%emt 0:06:09]} 25. Nd3 {[%emt 0:00:09]} Re7 {[%emt 0:02:53]} 26. f4 {[%emt 0:01:34]} Nf8 {[%emt 0:00:28]} 27. Nc5 {[%emt 0:01:47]} Nfd7 {[%emt 0:12:21]} 28. Nd3 {[%emt 0:00:19]} Nf8 {[%emt 0:00:07]} 29. Nc5 {[%emt 0:01:38]} Nfd7 {[%emt 0:00:13]} 30. Nd3 {[%emt 0:03:49]} Nf8 {[%emt 0:00:32]} 31. Nc5 {[%emt 0:04:18]} Nfd7 {[%emt 0:09:45]} 1/2-1/2

[Event "Chelyabinskiy variant-A 2021"]
[Site "Chelyabinsk"]
[Date "2021.03.24"]
[Round "2.4"]
[White "Harutjunyan, Gevorg"]
[Black "Shomoev, Anton"]
[Result "1/2-1/2"]
[ECO "B90"]
[WhiteElo "2439"]
[BlackElo "2563"]
[Annotator "ChessBase"]
[PlyCount "98"]
[EventDate "2021.03.23"]
[EventType "swiss"]
[EventCountry "RUS"]
[SourceTitle "playchess.com"]
[Source "ChessBase"]
[SourceQuality "1"]
[TimeControl "5400+30"]

1. e4 {[%emt 0:00:00]} c5 {[%emt 0:00:00]} 2. Nf3 {[%emt 0:00:00]} d6 {[%emt 0:00:00]} 3. d4 {[%emt 0:00:00]} cxd4 {[%emt 0:00:00]} 4. Nxd4 {[%emt 0:00:03]} Nf6 {[%emt 0:00:00]} 5. Nc3 {[%emt 0:00:08]} a6 {[%emt 0:00:00]} 6. Bc4 {[%emt 0:00:24]} e6 {[%emt 0:00:04]} 7. Bb3 {[%emt 0:00:08]} Nbd7 {[%emt 0:00:20]} 8. f4 {[%emt 0:04:32]} Nc5 {[%emt 0:00:20]} 9. Qf3 {[%emt 0:04:04]} b5 {[%emt 0:01:46]} 10. f5 {[%emt 0:00:49]} Bd7 {[%emt 0:00:35]} 11. Bg5 {[%emt 0:10:07]} Be7 {[%emt 0:02:39]} 12. e5 {[%emt 0:09:04]} dxe5 {[%emt 0:03:15]} 13. Nc6 {[%emt 0:00:17]} Bxc6 {[%emt 0:08:08]} 14. Qxc6+ {[%emt 0:00:08]} Kf8 {[%emt 0:00:10]} 15. fxe6 {[%emt 0:09:54]} Qc8 {[%emt 0:13:02]} 16. Qxc8+ {[%emt 0:02:51]} Rxc8 {[%emt 0:01:34]} 17. exf7 {[%emt 0:00:57]} Nxb3 {[%emt 0:03:44]} 18. axb3 {[%emt 0:01:00]} b4 {[%emt 0:08:57]} 19. Bxf6 {[%emt 0:07:23]} gxf6 {[%emt 0:00:55]} 20. Nd5 {[%emt 0:01:48]} Rxc2 {[%emt 0:00:20]} 21. O-O {[%emt 0:01:03]} Rc6 {[%emt 0:06:02]} 22. Rac1 {[%emt 0:05:06]} Rxc1 {[%emt 0:21:15]} 23. Rxc1 {[%emt 0:00:05]} Kxf7 {[%emt 0:00:07]} 24. Rc7 {[%emt 0:00:30]} Re8 {[%emt 0:00:02]} 25. Rb7 {[%emt 0:05:46]} Kf8 {[%emt 0:06:43]} 26. Kf1 {[%emt 0:05:59]} f5 {[%emt 0:03:01]} 27. Ke2 {[%emt 0:03:54]} a5 {[%emt 0:07:59]} 28. Ne3 {[%emt 0:09:16]} f4 {[%emt 0:04:17]} 29. Nd5 {[%emt 0:03:13]} e4 {[%emt 0:00:43]} 30. Nxf4 {[%emt 0:05:04]} Bg5 {[%emt 0:02:23]} 31. Rb5 {[%emt 0:04:19]} Bxf4 {[%emt 0:03:15]} 32. Rf5+ {[%emt 0:00:05]} Kg7 {[%emt 0:00:05]} 33. Rxf4 {[%emt 0:00:07]} Rc8 {[%emt 0:00:29]} 34. Ke3 {[%emt 0:02:04]} Rc1 {[%emt 0:00:01]} 35. Rf2 {[%emt 0:00:50]} Re1+ {[%emt 0:00:49]} 36. Re2 {[%emt 0:00:24]} Rh1 {[%emt 0:00:18]} 37. h3 {[%emt 0:00:41]} Kf6 {[%emt 0:01:18]} 38. Kxe4 {[%emt 0:00:20]} Kg5 {[%emt 0:01:11]} 39. Kd3 {[%emt 0:03:07]} Kf4 {[%emt 0:02:06]} 40. Re4+ {[%emt 0:01:31]} Kf5 {[%emt 0:00:01]} 41. Rh4 {[%emt 0:00:53]} Kg6 {[%emt 0:01:18]} 42. g4 {[%emt 0:01:17]} Rh2 {[%emt 0:00:14]} 43. Rh5 {[%emt 0:01:01]} Rxb2 {[%emt 0:00:06]} 44. Kc4 {[%emt 0:00:47]} Rc2+ {[%emt 0:01:06]} 45. Kb5 {[%emt 0:00:12]} Rb2 {[%emt 0:00:06]} 46. Ka4 {[%emt 0:00:47]} Ra2+ {[%emt 0:00:06]} 47. Kb5 {[%emt 0:00:03]} Rb2 {[%emt 0:00:14]} 48. Ka4 {[%emt 0:00:03]} Ra2+ {[%emt 0:00:05]} 49. Kb5 {[%emt 0:00:03]} Rb2 {[%emt 0:00:05]} 1/2-1/2

[Event "Chelyabinskiy variant-A 2021"]
[Site "Chelyabinsk"]
[Date "2021.03.24"]
[Round "2.6"]
[White "Sitnikov, Anton"]
[Black "Afanasiev, Nikita"]
[Result "1/2-1/2"]
[ECO "A45"]
[WhiteElo "2437"]
[BlackElo "2519"]
[Annotator "ChessBase"]
[PlyCount "122"]
[EventDate "2021.03.23"]
[EventType "swiss"]
[EventCountry "RUS"]
[SourceTitle "playchess.com"]
[Source "ChessBase"]
[SourceQuality "1"]
[TimeControl "5400+30"]

1. d4 {[%emt 0:04:30]} Nf6 {[%emt 0:00:09]} 2. c3 {[%emt 0:00:57]} d5 {[%emt 0:02:14]} 3. Bg5 {[%emt 0:01:30]} Nbd7 {[%emt 0:02:37]} 4. Nd2 {[%emt 0:00:47]} e5 {[%emt 0:02:58]} 5. Ngf3 {[%emt 0:01:13]} e4 {[%emt 0:11:04]} 6. Ne5 {[%emt 0:00:30]} h6 {[%emt 0:03:00]} 7. Bxf6 {[%emt 0:05:30]} Nxf6 {[%emt 0:02:34]} 8. e3 {[%emt 0:04:45]} c6 {[%emt 0:07:19]} 9. c4 {[%emt 0:09:15]} Qa5 {[%emt 0:01:37]} 10. a3 {[%emt 0:08:30]} Bd6 {[%emt 0:07:03]} 11. cxd5 {[%emt 0:07:30]} cxd5 {[%emt 0:12:22]} 12. b4 {[%emt 0:01:30]} Qb6 {[%emt 0:07:32]} 13. Qa4+ {[%emt 0:02:31]} Ke7 {[%emt 0:03:52]} 14. f4 {[%emt 0:00:29]} g5 {[%emt 0:03:15]} 15. Nb3 {[%emt 0:09:30]} Ng4 {[%emt 0:12:08]} 16. Nxg4 {[%emt 0:10:30]} Bxg4 {[%emt 0:00:04]} 17. g3 {[%emt 0:03:07]} gxf4 {[%emt 0:05:29]} 18. gxf4 {[%emt 0:05:11]} Rhg8 {[%emt 0:06:12]} 19. Be2 {[%emt 0:04:12]} Bxe2 {[%emt 0:01:58]} 20. Kxe2 {[%emt 0:00:07]} a5 {[%emt 0:01:06]} 21. b5 {[%emt 0:03:08]} Rg2+ {[%emt 0:00:32]} 22. Kf1 {[%emt 0:00:05]} Rc2 {[%emt 0:00:58]} 23. Rc1 {[%emt 0:03:19]} Rxc1+ {[%emt 0:02:52]} 24. Nxc1 {[%emt 0:00:07]} Qc7 {[%emt 0:00:04]} 25. Ne2 {[%emt 0:00:30]} Qd7 {[%emt 0:00:25]} 26. h3 {[%emt 0:03:36]} Rc8 {[%emt 0:00:41]} 27. Qxa5 {[%emt 0:04:04]} Rc2 {[%emt 0:00:06]} 28. Rh2 {[%emt 0:02:11]} Qc8 {[%emt 0:00:49]} 29. Qe1 {[%emt 0:00:25]} Qe6 {[%emt 0:00:30]} 30. a4 {[%emt 0:01:08]} Ra2 {[%emt 0:00:25]} 31. Qh4+ {[%emt 0:01:35]} Kd7 {[%emt 0:00:19]} 32. Qh5 {[%emt 0:01:00]} Bb4 {[%emt 0:00:34]} 33. Rf2 {[%emt 0:02:21]} Rxa4 {[%emt 0:01:37]} 34. f5 {[%emt 0:00:45]} Qf6 {[%emt 0:00:04]} 35. Nf4 {[%emt 0:00:07]} Ra1+ {[%emt 0:00:35]} 36. Kg2 {[%emt 0:00:04]} Kd6 {[%emt 0:01:13]} 37. Qg4 {[%emt 0:01:28]} Qg5 {[%emt 0:01:10]} 38. Rc2 {[%emt 0:00:30]} Ra3 {[%emt 0:00:55]} 39. Rc8 {[%emt 0:00:31]} Kd7 {[%emt 0:00:36]} 40. Rg8 {[%emt 0:00:30]} Ra2+ {[%emt 0:00:30]} 41. Kf1 {[%emt 0:00:24]} Ra1+ {[%emt 0:00:13]} 42. Ke2 {[%emt 0:00:31]} Ra2+ {[%emt 0:00:24]} 43. Kd1 {[%emt 0:00:25]} Qxg4+ {[%emt 0:00:47]} 44. hxg4 {[%emt 0:00:05]} Kd6 {[%emt 0:00:04]} 45. Rd8+ {[%emt 0:00:51]} Kc7 {[%emt 0:00:16]} 46. Rh8 {[%emt 0:00:14]} Kb6 {[%emt 0:00:21]} 47. Nxd5+ {[%emt 0:01:00]} Kxb5 {[%emt 0:00:03]} 48. Nxb4 {[%emt 0:00:29]} Kxb4 {[%emt 0:00:03]} 49. Rc8 {[%emt 0:00:20]} b5 {[%emt 0:01:04]} 50. Rc7 {[%emt 0:00:39]} Rg2 {[%emt 0:00:40]} 51. d5 {[%emt 0:00:30]} Rxg4 {[%emt 0:00:26]} 52. d6 {[%emt 0:00:06]} Rg8 {[%emt 0:00:14]} 53. Rxf7 {[%emt 0:00:55]} Rd8 {[%emt 0:00:16]} 54. Rf6 {[%emt 0:00:31]} Kc5 {[%emt 0:00:08]} 55. Kc2 {[%emt 0:00:31]} Rxd6 {[%emt 0:00:04]} 56. Rg6 {[%emt 0:00:07]} Kd5 {[%emt 0:00:11]} 57. f6 {[%emt 0:00:09]} Rd7 {[%emt 0:03:06]} 58. Rxh6 {[%emt 0:00:07]} Ke6 {[%emt 0:00:32]} 59. Rh4 {[%emt 0:00:12]} Ke5 {[%emt 0:00:26]} 60. Rf4 {[%emt 0:00:44]} Ke6 {[%emt 0:00:40]} 61. Kc3 {[%emt 0:00:32]} Kf7 {[%emt 0:00:31]} 1/2-1/2

[Event "Chelyabinskiy variant-A 2021"]
[Site "Chelyabinsk"]
[Date "2021.03.24"]
[Round "2.7"]
[White "Buksa, Nataliya"]
[Black "Utegaliyev, Azamat"]
[Result "1/2-1/2"]
[ECO "B06"]
[WhiteElo "2419"]
[BlackElo "2507"]
[Annotator "RC"]
[PlyCount "142"]
[EventDate "2021.03.23"]
[EventType "swiss"]
[EventCountry "RUS"]
[SourceTitle "playchess.com"]
[Source "ChessBase"]
[SourceQuality "1"]
[TimeControl "5400+30"]

1. e4 {[%emt 0:00:00]} g6 {[%emt 0:00:00]} 2. d4 {[%emt 0:00:00]} Bg7 {[%emt 0:00:01]} 3. Nc3 {[%emt 0:00:00]} c6 {[%emt 0:00:55]} 4. Nf3 {[%emt 0:00:13]} d6 {[%emt 0:00:35]} 5. h3 {[%emt 0:05:45]} Nf6 {[%emt 0:02:44]} 6. Be2 {[%emt 0:00:50]} O-O {[%emt 0:00:15]} 7. O-O {[%emt 0:00:46]} Nbd7 {[%emt 0:03:39]} 8. Bf4 {[%emt 0:00:30]} Qc7 {[%emt 0:02:56]} 9. e5 {[%emt 0:00:24]} dxe5 {[%emt 0:01:07]} 10. Nxe5 {[%emt 0:00:53]} Qb6 {[%emt 0:02:37]} 11. a3 {[%emt 0:01:54]} Nd5 {[%emt 0:00:50]} 12. Nxd5 {[%emt 0:16:14]} cxd5 {[%emt 0:00:08]} 13. b3 {[%emt 0:00:03]} Nxe5 {[%emt 0:04:21]} 14. Bxe5 {[%emt 0:01:27]} Bxe5 {[%emt 0:00:07]} 15. dxe5 {[%emt 0:00:04]} Be6 {[%emt 0:00:28]} 16. Qd2 {[%emt 0:14:24]} Rac8 {[%emt 0:01:40]} 17. Bd3 {[%emt 0:03:13]} Kg7 {[%emt 0:16:25]} 18. Qb4 {[%emt 0:13:39]} Qxb4 {[%emt 0:03:34]} 19. axb4 {[%emt 0:00:09]} a6 {[%emt 0:00:11]} 20. Ra5 {[%emt 0:00:36]} Bf5 {[%emt 0:07:16]} 21. Bxf5 {[%emt 0:09:04]} gxf5 {[%emt 0:00:07]} 22. Rxd5 {[%emt 0:00:01]} Rxc2 {[%emt 0:00:11]} 23. Rd7 {[%emt 0:00:03]} e6 {[%emt 0:00:13]} 24. Rxb7 {[%emt 0:01:44]} Rd8 {[%emt 0:00:43]} 25. Rb6 {[%emt 0:05:56]} Rd5 {[%emt 0:09:22]} 26. Rxa6 {[%emt 0:03:52]} Rxe5 {[%emt 0:00:06]} 27. Ra5 {[%emt 0:02:25]} Re4 {[%emt 0:00:27]} 28. b5 {[%emt 0:09:59]} Rb2 {[%emt 0:11:08]} 29. Rd1 {[%emt 0:00:37]} Rxb3 {[%emt 0:12:19]} 30. Ra7 {[%emt 0:01:33]} h5 {[%emt 0:11:44]} 31. Rdd7 {[%emt 0:01:52]} h4 {[%emt 0:00:26]} 32. Rxf7+ {[%emt 0:02:57]} Kg6 {[%emt 0:00:04]} 33. Rg7+ {[%emt 0:01:22]} Kf6 {[%emt 0:00:32]} 34. Rh7 {[%emt 0:01:33]} Rxb5 {[%emt 0:01:01]} 35. Rh6+ {[%emt 0:00:53]} Kg5 {[%emt 0:04:41]} 36. Rah7 {[%emt 0:01:41]} Rb2 {[%emt 0:00:41]} 37. Rh5+ {[%emt 0:01:01]} Kf6 {[%emt 0:00:04]} 38. R5h6+ {[%emt 0:00:51]} Ke5 {[%emt 0:00:14]} 39. Rxh4 {[%emt 0:00:17]} Re1+ {[%emt 0:00:10]} 40. Kh2 {[%emt 0:00:02]} Rxf2 {[%emt 0:00:07]} 41. R4h5 {[%emt 0:01:11]} Rff1 {[%emt 0:00:49]} 42. Kg3 {[%emt 0:00:24]} Re2 {[%emt 0:01:32]} 43. Kh2 {[%emt 0:00:03]} Ree1 {[%emt 0:02:20]} 44. Ra7 {[%emt 0:00:22]} Rh1+ {[%emt 0:01:38]} 45. Kg3 {[%emt 0:00:02]} Re3+ {[%emt 0:00:05]} 46. Kf2 {[%emt 0:01:23]} Rhe1 {[%emt 0:00:42]} 47. h4 {[%emt 0:00:41]} R1e2+ {[%emt 0:00:18]} 48. Kf1 {[%emt 0:00:12]} Kf4 {[%emt 0:00:44]} 49. Kg1 {[%emt 0:00:45]} Rg3 {[%emt 0:00:22]} 50. Ra4+ {[%emt 0:00:04]} Ke5 {[%emt 0:00:08]} 51. Ra5+ {[%emt 0:00:24]} Kf6 {[%emt 0:00:11]} 52. Kf1 {[%emt 0:00:44]} Rexg2 {[%emt 0:00:41]} 53. Ra6 {[%emt 0:00:34]} Rg1+ {[%emt 0:01:02]} 54. Kf2 {[%emt 0:00:01]} R1g2+ {[%emt 0:00:04]} 55. Kf1 {[%emt 0:00:02]} Rg8 {[%emt 0:00:52]} 56. Rh6+ {[%emt 0:00:38]} R2g6 {[%emt 0:00:04]} 57. Rh7 {[%emt 0:00:01]} Ke5 {[%emt 0:00:22]} 58. h5 {[%emt 0:00:41]} Rf6 {[%emt 0:01:13]} 59. Ra2 {[%emt 0:00:57]} f4 {[%emt 0:00:48]} 60. Rh2 {[%emt 0:01:13]} Kf5 {[%emt 0:01:14]} 61. h6 {[%emt 0:00:37]} Rff8 {[%emt 0:00:38]} 62. Rb7 {[%emt 0:00:42]} Ra8 {[%emt 0:00:31]} 63. h7 {[%emt 0:00:14]} Rh8 {[%emt 0:00:15]} 64. Rh6 {[%emt 0:00:34]} Rae8 {[%emt 0:00:45]} 65. Kf2 {[%emt 0:00:42]} Kg5 {[%emt 0:00:18]} 66. Rh1 {[%emt 0:00:19]} e5 {[%emt 0:00:11]} 67. Rg7+ {[%emt 0:00:32]} Kf5 {[%emt 0:00:34]} 68. Rh5+ {[%emt 0:00:23]} Kf6 {[%emt 0:00:44]} 69. Rhg5 {[%emt 0:00:04]} Rxh7 {[%emt 0:00:44]} 70. R5g6+ {[%emt 0:00:04]} Kf5 {[%emt 0:00:03]} 71. Rg5+ {[%emt 0:00:03]} Kf6 1/2-1/2

[Event "Chelyabinskiy variant-A 2021"]
[Site "Chelyabinsk"]
[Date "2021.03.24"]
[Round "2.8"]
[White "Khanin, Semen"]
[Black "Remizov, Yaroslav"]
[Result "1/2-1/2"]
[ECO "B10"]
[WhiteElo "2506"]
[BlackElo "2411"]
[Annotator "ChessBase"]
[PlyCount "112"]
[EventDate "2021.03.23"]
[EventType "swiss"]
[EventCountry "RUS"]
[SourceTitle "playchess.com"]
[Source "ChessBase"]
[SourceQuality "1"]
[TimeControl "5400+30"]

1. e4 {[%emt 0:00:00]} c6 {[%emt 0:00:00]} 2. Nf3 {[%emt 0:00:00]} d5 {[%emt 0:00:00]} 3. d3 {[%emt 0:00:00]} g6 {[%emt 0:00:16]} 4. Qe2 {[%emt 0:00:23]} Bg7 {[%emt 0:00:30]} 5. g3 {[%emt 0:02:11]} Bg4 {[%emt 0:07:44]} 6. Bg2 {[%emt 0:02:04]} e6 {[%emt 0:00:07]} 7. Nbd2 {[%emt 0:02:45]} Ne7 {[%emt 0:01:47]} 8. h3 {[%emt 0:02:31]} Bxf3 {[%emt 0:00:08]} 9. Nxf3 {[%emt 0:00:03]} dxe4 {[%emt 0:01:33]} 10. dxe4 {[%emt 0:01:11]} Qa5+ {[%emt 0:00:08]} 11. c3 {[%emt 0:05:56]} Qa6 {[%emt 0:07:36]} 12. Qxa6 {[%emt 0:03:54]} Nxa6 {[%emt 0:00:51]} 13. Be3 {[%emt 0:00:10]} Nc8 {[%emt 0:45:13]} 14. O-O-O {[%emt 0:06:36]} Nb6 {[%emt 0:01:01]} 15. Kc2 {[%emt 0:01:00]} O-O {[%emt 0:07:45]} 16. b3 {[%emt 0:03:57]} Rfd8 {[%emt 0:02:32]} 17. a4 {[%emt 0:02:21]} Bf6 {[%emt 0:01:30]} 18. a5 {[%emt 0:05:59]} Nd7 {[%emt 0:00:45]} 19. Rd2 {[%emt 0:01:53]} Kf8 {[%emt 0:05:33]} 20. Rhd1 {[%emt 0:02:26]} Ke7 {[%emt 0:01:41]} 21. b4 {[%emt 0:04:44]} Nc7 {[%emt 0:02:57]} 22. h4 {[%emt 0:01:29]} Ne5 {[%emt 0:04:44]} 23. Rxd8 {[%emt 0:14:00]} Rxd8 {[%emt 0:00:16]} 24. Bc5+ {[%emt 0:00:23]} Ke8 {[%emt 0:00:07]} 25. Rxd8+ {[%emt 0:00:11]} Kxd8 {[%emt 0:00:05]} 26. Nxe5 {[%emt 0:00:08]} Bxe5 {[%emt 0:00:04]} 27. f4 {[%emt 0:00:15]} Bg7 {[%emt 0:00:34]} 28. e5 {[%emt 0:08:08]} a6 {[%emt 0:00:08]} 29. c4 {[%emt 0:00:26]} f6 {[%emt 0:01:39]} 30. Bd4 {[%emt 0:05:12]} f5 {[%emt 0:00:43]} 31. Bc5 {[%emt 0:00:06]} h5 {[%emt 0:00:42]} 32. Kd3 {[%emt 0:00:17]} Kd7 {[%emt 0:01:00]} 33. Kd4 {[%emt 0:00:20]} Bh6 {[%emt 0:00:23]} 34. Bf1 {[%emt 0:08:59]} Bg7 {[%emt 0:00:22]} 35. Be2 {[%emt 0:00:03]} Bh6 {[%emt 0:01:11]} 36. Bf3 {[%emt 0:03:21]} Bg7 {[%emt 0:00:13]} 37. Bg2 {[%emt 0:00:03]} Bh6 {[%emt 0:00:08]} 38. Bd6 {[%emt 0:00:15]} Ne8 {[%emt 0:01:26]} 39. Kc5 {[%emt 0:00:03]} Nxd6 {[%emt 0:03:35]} 40. exd6 {[%emt 0:00:04]} Bg7 {[%emt 0:02:17]} 41. b5 {[%emt 0:07:06]} cxb5 {[%emt 0:00:03]} 42. cxb5 {[%emt 0:00:27]} Bb2 {[%emt 0:00:03]} 43. Bxb7 {[%emt 0:05:10]} Ba3+ {[%emt 0:00:04]} 44. Kb6 {[%emt 0:01:13]} axb5 {[%emt 0:00:05]} 45. Bc6+ {[%emt 0:03:26]} Kxd6 {[%emt 0:00:04]} 46. Bxb5 {[%emt 0:00:15]} e5 {[%emt 0:00:20]} 47. a6 {[%emt 0:01:18]} exf4 {[%emt 0:00:08]} 48. gxf4 {[%emt 0:00:05]} Bc5+ {[%emt 0:00:05]} 49. Kb7 {[%emt 0:00:02]} Kd5 {[%emt 0:00:04]} 50. Bc6+ {[%emt 0:00:50]} Kd4 {[%emt 0:00:03]} 51. Be8 {[%emt 0:00:07]} Ke4 {[%emt 0:00:04]} 52. Bxg6 {[%emt 0:00:02]} Kxf4 {[%emt 0:00:04]} 53. Bxh5 {[%emt 0:00:07]} Kg3 {[%emt 0:00:02]} 54. Bg6 {[%emt 0:00:06]} Kxh4 {[%emt 0:00:04]} 55. Bxf5 {[%emt 0:00:02]} Kg5 {[%emt 0:00:04]} 56. a7 {[%emt 0:00:02]} Bxa7 1/2-1/2

[Event "Chelyabinskiy variant-A 2021"]
[Site "Chelyabinsk"]
[Date "2021.03.24"]
[Round "2.9"]
[White "Obgolts, Erik"]
[Black "Drygalov, Andrey"]
[Result "0-1"]
[ECO "B90"]
[WhiteElo "2404"]
[BlackElo "2500"]
[Annotator "RC"]
[PlyCount "48"]
[EventDate "2021.03.23"]
[EventType "swiss"]
[EventCountry "RUS"]
[SourceTitle "playchess.com"]
[Source "ChessBase"]
[SourceQuality "1"]
[TimeControl "5400+30"]

1. e4 {[%emt 0:00:00]} c5 {[%emt 0:00:00]} 2. Nf3 {[%emt 0:00:00]} d6 {[%emt 0:00:00]} 3. d4 {[%emt 0:00:00]} cxd4 {[%emt 0:00:00]} 4. Nxd4 {[%emt 0:00:00]} Nf6 {[%emt 0:00:00]} 5. Nc3 {[%emt 0:00:00]} a6 {[%emt 0:00:21]} 6. Be3 {[%emt 0:00:02]} e6 {[%emt 0:05:23]} 7. f3 {[%emt 0:06:02]} b5 {[%emt 0:00:12]} 8. Qd2 {[%emt 0:04:49]} Nbd7 {[%emt 0:04:26]} 9. g4 {[%emt 0:15:46]} Nb6 {[%emt 0:02:26]} 10. a3 {[%emt 0:10:19]} Bb7 {[%emt 0:02:28]} 11. Qf2 {[%emt 0:09:22]} Nfd7 {[%emt 0:00:45]} 12. Nb3 {[%emt 0:00:12]} Rc8 {[%emt 0:03:44]} 13. O-O-O {[%emt 0:01:27]} Rxc3 {[%emt 0:04:07]} 14. bxc3 {[%emt 0:00:06]} Qc7 {[%emt 0:02:19]} 15. Qg3 {[%emt 0:13:34]} e5 {[%emt 0:18:59]} 16. Bxb6 {[%emt 0:17:54]} Nxb6 {[%emt 0:01:46]} 17. f4 {[%emt 0:00:13]} Bxe4 {[%emt 0:05:07]} 18. Bg2 {[%emt 0:01:06]} Bxg2 {[%emt 0:00:37]} 19. Qxg2 {[%emt 0:00:04]} d5 {[%emt 0:00:13]} 20. Kb1 {[%emt 0:12:25]} Bxa3 {[%emt 0:00:50]} 21. Ka2 {[%emt 0:00:27]} Qxc3 {[%emt 0:02:03]} 22. Rb1 {[%emt 0:00:05]} Be7 {[%emt 0:00:42]} 23. Qd2 {[%emt 0:00:53]} Qc4 {[%emt 0:00:22]} 24. Qa5 {[%emt 0:00:19]} Na4 {[%emt 0:04:09]} 0-1